{"text_format":"2","workbook":"xlsx","n_sheets":1,"sheets":["Hoja1"],"not_rendered":{"charts":0,"images":0,"macros":0,"external_links":0,"defined_names":0,"comments":0,"pivot_tables":0},"unopened":[],"bounds":{"document_bytes":16777216,"sheet_cells":100000,"run_cost":"one","rows_first":2000,"rows_last":500,"rows_between":2000,"halvings":0,"cell_chars":16384,"cell_head_chars":4096},"cells_cut":0,"cells_raw":0,"read":"whole","date_system":"1900"}

{"sheet":"Hoja1","index":0,"n_rows":17,"n_cols":11,"rows_kept":17,"cut":false,"hidden":false,"merged":[]}
["Mes","Alquiles s/c","Pagaré","Tot. Alq.","Agua","Pasto","Sub total","Administ.","Total","Seguro","Observaciones"]
["marzo",null,null,{"$f":"B2+C2","v":0},null,null,{"$f":"B2+C2+E2+F2","v":0},{"$f":"D2*0.04","v":0},{"$f":"G2-H2","v":0}]
["abril",null,null,{"$f":"B3+C3","v":0},null,null,0,{"$f":"(B3+C3)*0.04","v":0},{"$f":"G3-H3","v":0}]
["mayo",null,null,0,null,null,0,0,0]
["junio",null,null,0,null,null,0,0,0]
["julio",null,null,0,null,null,0,0,0]
["agosto",null,null,0,null,null,0,0,0]
["septiembre",null,null,0,null,null,0,0,0]
["octubre",null,null,0,null,null,0,0,0]
["noviembre",null,null,0,null,null,0,0,0]
["diciembre",null,null,0,null,null,0,0,0]
["enero",null,null,0,null,null,0,0,0]
["febrero",null,null,0,null,null,0,0,0]
["marzo",null,null,0,null,null,{"$f":"B14+C14+E14+F14","v":0},{"$f":"(B14+C14)*0.04","v":0},{"$f":"G14-H14","v":0}]
["abril",null,null,0,null,null,0,0,0]
["mayo",null,null,0,null,null,0,0,0]
["junio",null,null,0,null,null,0,0,0]